Cogmind - Beta 16 @@@ ROGUE MODE // 2025.12.06 @ 19:49:13 Player: ktur Result: Destroyed by D-63 Destroyer with Heavy Rocket Launcher Performance ------------- Evolutions (5) 2500 Regions Visited (24) 4800 Robots Destroyed (99) 495 Value Destroyed (4450) 4450 Prototype IDs (73) 1460 Alien Tech Used (0) 0 Bonus (4448) 4448 TOTAL SCORE: 18153 Bonus ------- High Alert Combat Kills 294 Follower Combat Kills 282 Awakened Behemoth Slayer 1000 Entered Garrisons 200 Aligned with FarCom 300 Met Data Miner 300 Met Imprinter 300 Acquired ECA 300 Met Warlord at Base 500 MAIN.C Attacked Warlord 500 Warlord Defense Kills 472 Cogmind --------- Core Integrity 0/1000 Matter 300/300 Energy 698/700 System Corruption 0% Temperature Cool (4) Movement Flying (32) Location -5/Warlord Parts ------- > --- POWER (1) -------- Backup Power III > --- PROPULSION (6) --- Cooled Impulse Thruster Cooled Impulse Thruster > --- UTILITY (8) ------ Experimental Energy Well Spectral Analyzer Experimental Armor Integrity Analyzer Experimental Focal Shield Advanced Hacking Suite Advanced Hacking Suite Makeshift System Shield Experimental System Shield > --- WEAPON (2) ------- Mini Smartbomb Launcher CR-A16's Behemoth Slayer > --- INVENTORY (5) ---- Stasis Canceller Advanced ECM Suite Experimental Phase Shifter Vortex Driver (30) Peak State ------------ > --- POWER ------------ Backup Power III > --- PROPULSION ------- Cooled Impulse Thruster Cooled Impulse Thruster > --- UTILITY ---------- Experimental Energy Well Spectral Analyzer Experimental Armor Integrity Analyzer Experimental Focal Shield Advanced Hacking Suite Advanced Hacking Suite Makeshift System Shield Experimental System Shield > --- WEAPON ----------- Vortex Driver CR-A16's Behemoth Slayer > --- INVENTORY -------- Stasis Canceller Advanced ECM Suite Experimental Phase Shifter Mini Smartbomb Launcher [Rating: 102] Favorites ----------- Power Micro Nuclear Core Engine Ion Engine Power Core Micro Nuclear Core Reactor Cold Fusion Reactor Propulsion Light Treads Treads Light Treads Flight Unit Biomechanical Wings Utility Large Storage Unit Device Improved Reaction Control System Storage Large Storage Unit Processor Launcher Guidance Computer Hackware Hacking Suite Protection Experimental Utility Shielding Weapon Chainsword Energy Gun Small Laser Energy Cannon Improved EM Pulse Cannon Ballistic Gun Assault Rifle Ballistic Cannon Antimatter Cannon Launcher Micro-nuke Launcher Special Weapon Mining Laser Slashing Weapon Chainsword Piercing Weapon CR-A16's Behemoth Slayer Build | -11 -10 -10 -10 -9 -8 -8 -8 -8 -7 -7 -7 -7 -6 -6 -6 -6 -6 -6 -6 -5 -5 -5 -5 -5 ------- Run | Yrd Mat Min Exi Min Mat Gar Mat Sto Fac Low Low Dat Pro Fac Was Fac Low Low Zio Pro Fac Upp Upp War Slots Evolved 10 | . . . . . 4 . . . 2 . . . . 2 . . . . . . 2 . . . Power . | . . . . . . . . . . . . . . . . . . . . . . . . . Propulsion 4 | . . . . . 2 . . . 1 . . . . . . . . . . . 1 . . . Utility 6 | . . . . . 2 . . . 1 . . . . 2 . . . . . . 1 . . . Weapon . | . . . . . . . . . . . . . . . . . . . . . . . . . Parts Attached 114 | 7 1 1 1 . 12 9 8 6 12 1 1 . 1 3 . 14 1 2 11 . 10 1 1 11 Power 12 | 1 . . . . 1 1 1 1 1 . . . 1 . . 1 . 1 . . 2 . 1 . Engine 2 | 1 . . . . . . . . . . . . 1 . . . . . . . . . . . Core 9 | . . . . . 1 1 1 . 1 . . . . . . 1 . 1 . . 2 . 1 . Reactor 1 | . . . . . . . . 1 . . . . . . . . . . . . . . . . Propulsion 24 | 2 . . . . 3 3 4 2 3 . . . . . . 1 . . 1 . 3 . . 2 Treads 14 | 2 . . . . 3 3 4 2 . . . . . . . . . . . . . . . . Leg . | . . . . . . . . . . . . . . . . . . . . . . . . . Wheel . | . . . . . . . . . . . . . . . . . . . . . . . . . Hover . | . . . . . . . . . . . . . . . . . . . . . . . . . Flight 10 | . . . . . . . . . 3 . . . . . . 1 . . 1 . 3 . . 2 Utility 53 | 2 1 . 1 . 4 2 2 3 5 . 1 . . 3 . 10 . . 9 . 4 1 . 5 Device 13 | 1 . . . . 2 . . 2 . . 1 . . . . 3 . . 1 . . 1 . 2 Storage 5 | 1 1 . 1 . . . . . . . . . . . . . . . 1 . . . . 1 Processor 8 | . . . . . . . 1 . . . . . . 2 . . . . 3 . 1 . . 1 Hackware 17 | . . . . . . . . . 3 . . . . 1 . 6 . . 3 . 3 . . 1 Protection 10 | . . . . . 2 2 1 1 2 . . . . . . 1 . . 1 . . . . . Artifact . | . . . . . . . . . . . . . . . . . . . . . . . . . Weapon 25 | 2 . 1 . . 4 3 1 . 3 1 . . . . . 2 1 1 1 . 1 . . 4 Energy Gun 4 | 1 . . . . 2 . . . . . . . . . . . . . . . . . . 1 Energy Cannon 3 | . . . . . . . . . 2 . . . . . . . . . . . . . . 1 Ballistic Gun 8 | 1 . . . . 2 2 1 . 1 . . . . . . . . 1 . . . . . . Ballistic Cannon 1 | . . . . . . . . . . . . . . . . 1 . . . . . . . . Launcher 4 | . . . . . . 1 . . . . . . . . . . 1 . . . 1 . . 1 Special Weapon 1 | . . 1 . . . . . . . . . . . . . . . . . . . . . . Impact Weapon . | . . . . . . . . . . . . . . . . . . . . . . . . . Slashing Weapon 2 | . . . . . . . . . . 1 . . . . . 1 . . . . . . . . Piercing Weapon 2 | . . . . . . . . . . . . . . . . . . . 1 . . . . 1 Special Melee Weapon . | . . . . . . . . . . . . . . . . . . . . . . . . . Unidentified Prototypes 17 | . . . . . 3 . . 1 . . . . . . . . . . 4 . 1 . . 8 Parts Lost 25 | . . . . . 3 4 4 3 . . . . . . . . . . . . 6 5 . . Power 2 | . . . . . . . . . . . . . . . . . . . . . 2 . . . Propulsion 11 | . . . . . 2 2 2 . . . . . . . . . . . . . 3 2 . . Utility 8 | . . . . . 1 1 1 1 . . . . . . . . . . . . 1 3 . . Weapon 4 | . . . . . . 1 1 2 . . . . . . . . . . . . . . . . Highest Loss Streak 5 | . . . . . 1 2 4 2 . . . . . . . . . . . . 3 5 . . To Critical Strikes . | . . . . . . . . . . . . . . . . . . . . . . . . . Average Backups 12 | 2 8 12 13 13 16 16 16 16 14 15 15 15 15 13 14 14 15 15 12 7 6 4 3 4 Power . | . 1 1 1 1 2 1 1 1 . . . . . . . . 1 1 . . . . . . Propulsion 1 | 1 2 2 1 2 2 3 3 2 . 1 1 1 1 1 1 1 1 1 . . . . . . Utility 5 | . 1 3 2 3 4 4 4 6 9 11 11 11 11 9 9 9 10 10 7 4 3 3 3 3 Weapon 4 | 1 4 6 7 7 7 7 7 7 2 1 1 1 1 1 1 1 2 2 2 2 1 1 . 1 Tool/Special . | . . . . . . . . . . . . . . . . . . . . . . . . . Unused Backups 28 | . . . 2 . 6 3 . . 4 2 . . 1 . . 5 . . 3 . . 1 . 1 Power 2 | . . . . . 1 1 . . . . . . . . . . . . . . . . . . Propulsion 2 | . . . 1 . . 1 . . . . . . . . . . . . . . . . . . Utility 13 | . . . . . . . . . 1 2 . . 1 . . 4 . . 3 . . 1 . 1 Weapon 10 | . . . 1 . 5 1 . . 3 . . . . . . . . . . . . . . . Tool/Special 1 | . . . . . . . . . . . . . . . . 1 . . . . . . . . Average Slot Usage (%) 82 | . 100 100 100 100 80 98 99 95 68 76 76 69 76 79 80 79 80 80 78 65 69 35 30 63 Engine 2 | . 14 14 14 14 . . . . . . . . . . . . . . . . . . . 3 Core 5 | . . . . . 8 9 9 4 6 7 7 7 7 6 6 6 6 6 5 . 1 . . . Treads 13 | . 28 28 28 28 23 35 36 36 . . . . . . . . . . . . . . . . Flight 7 | . . . . . . . . . 14 15 15 15 15 13 13 13 13 13 13 13 16 2 . 8 Device 8 | . 14 14 14 14 11 13 9 7 . . . . . . . 3 13 13 11 6 3 . . 3 Storage 7 | . 14 14 14 14 9 9 9 9 7 7 7 7 7 6 6 6 6 6 6 6 5 1 . 3 Processor 4 | . . . . . . . 7 9 3 . . . . 10 13 7 6 6 12 6 5 5 5 9 Hackware 8 | . . . . . . . . . 16 15 15 15 15 20 20 21 13 13 7 20 23 18 17 21 Protection 6 | . . . . . 8 13 10 7 8 15 14 15 15 8 6 5 6 6 5 6 4 . . . Energy Gun 2 | . 14 13 14 14 2 . . . . . . . . . . . . . . . . . . . Energy Cannon 1 | . . . . . . . . . 3 11 6 . 7 5 6 6 . . . . . . . . Ballistic Gun 6 | . 14 14 14 14 15 17 17 16 3 . . . . . . . . . . . . . . . Launcher 1 | . . . . . . . . . . . . . . . . . 5 6 5 . . . . 2 Slashing Weapon 2 | . . . . . . . . . . 2 7 7 7 6 6 6 6 6 5 . . . . . Peak Build Rating 102 | 7 8 8 11 11 31 32 29 34 64 65 66 65 66 69 71 86 85 85 94 59 83 62 51 102 Average Rating 47 | 4 7 8 9 11 23 28 27 29 58 64 65 61 64 68 70 78 84 84 68 58 71 44 42 85 On Entrance 45 | . 7 8 8 11 11 31 27 28 23 64 65 65 65 65 69 71 82 85 85 59 59 62 41 41 Avg Prop Armor Cover (%) 9 | . . . . . . . . . . . . . . . . . . . . . 10 . . 7 Naked Turns . | . . . . . . . . . . . . . . . . . . . . . . . . . Heaviest Build 68 | 14 29 29 49 49 66 68 68 63 44 44 40 40 40 40 38 44 48 48 48 11 38 12 11 12 Greatest Support 86 | 40 40 40 40 40 60 80 80 86 56 55 55 55 55 55 55 56 56 56 56 12 25 12 3 14 Greatest Overweight (x) 7 | . . . 1 1 1 1 . . . . . . . . . . . . 7 . 1 2 3 . Average Overweight (x) . | . . . . 1 . . . . . . . . . . . . . . 1 . . . . . Largest Inventory Capacity 20 | 8 15 15 20 20 20 20 20 20 20 15 15 15 15 15 15 15 15 15 15 8 8 8 5 5 Average Capacity 15 | 7 14 15 16 20 20 20 20 20 15 15 15 15 15 15 15 15 15 15 14 8 8 5 5 5 Most Carried 20 | 5 11 14 16 16 20 20 20 20 19 15 15 15 15 14 15 15 15 15 15 8 8 8 5 5 Average Carried 14 | 3 8 12 14 16 19 19 19 19 14 15 15 15 14 13 14 14 15 15 12 8 7 5 4 4 Final Capacity 20 | 8 15 15 20 20 20 20 20 20 15 15 15 15 15 15 15 15 15 15 8 8 8 5 5 5 Final Carried 20 | 5 11 14 16 16 20 20 19 20 15 15 15 15 15 13 15 15 15 15 8 8 7 5 5 4 Class Distribution -------------------- 39% | Mutant 35% | Hacker-Mutant 21% | Scavenger-Mutant 3% | Hacker-Sprinter Dominant Class ---------------- Mutant | -10/Materials Mutant | -10/Mines Mutant | -10/Exiles Mutant | -9/Mines Mutant | -8/Materials Scavenger-Mutant | -8/Garrison Scavenger-Mutant | -8/Materials Scavenger-Mutant | -8/Storage Hacker-Mutant | -7/Factory Hacker-Mutant | -7/Lower Caves Hacker-Mutant | -7/Lower Caves Hacker-Mutant | -7/Data Miner Hacker-Mutant | -6/Proximity Caves Hacker-Mutant | -6/Factory Hacker-Mutant | -6/Waste Hacker-Mutant | -6/Factory Hacker-Mutant | -6/Lower Caves Hacker-Mutant | -6/Lower Caves Mutant | -6/Zion Hacker-Mutant | -5/Proximity Caves Hacker-Mutant | -5/Factory Hacker-Mutant | -5/Upper Caves Hacker-Mutant | -5/Upper Caves Hacker-Sprinter | -5/Warlord Resources | -11 -10 -10 -10 -9 -8 -8 -8 -8 -7 -7 -7 -7 -6 -6 -6 -6 -6 -6 -6 -5 -5 -5 -5 -5 ----------- Run | Yrd Mat Min Exi Min Mat Gar Mat Sto Fac Low Low Dat Pro Fac Was Fac Low Low Zio Pro Fac Upp Upp War Matter Collected 3859 | 276 58 135 . . 657 687 264 240 156 10 66 . 30 76 . 302 10 76 140 40 179 67 26 364 Remotely . | . . . . . . . . . . . . . . . . . . . . . . . . . Salvage Created 4266 | 38 211 57 . . 756 780 248 283 60 . 35 . . 195 . 974 . 70 . . 273 92 72 122 Parts 247 | 8 14 2 . . 31 58 16 28 3 . 5 . . 7 . 35 . 7 . . 16 7 10 . Haulers Intercepted 6 | . . . . . 1 . . 1 1 . . . . 1 . 2 . . . . . . . . Recyclers Shooed 3 | . 1 . . . . . . 1 . . . . . . . 1 . . . . . . . . Parts Field Recycled . | . . . . . . . . . . . . . . . . . . . . . . . . . Retrieved Matter . | . . . . . . . . . . . . . . . . . . . . . . . . . Parts Self-Destructed 33 | . . . . . . . . . . . 4 . 9 . . . . 5 . . . 6 9 . Prevented 5 | . . . . . . . . . . . . . 4 . . . . . . 1 . . . . Parts Restored . | . . . . . . . . . . . . . . . . . . . . . . . . . Kills | -11 -10 -10 -10 -9 -8 -8 -8 -8 -7 -7 -7 -7 -6 -6 -6 -6 -6 -6 -6 -5 -5 -5 -5 -5 ------- Run | Yrd Mat Min Exi Min Mat Gar Mat Sto Fac Low Low Dat Pro Fac Was Fac Low Low Zio Pro Fac Upp Upp War Combat Hostiles Destroyed 77 | . 6 1 . . 13 21 4 3 . . 3 . . 3 . 7 . 4 . . 2 1 5 4 Melee 5 | . . . . . . . . . . . . . . . . 2 . 1 . . 2 . . . Guns 42 | . 6 1 . . 13 15 4 3 . . . . . . . . . . . . . . . . Cannons 2 | . . . . . . . . . . . . . . . . 2 . . . . . . . . AOE 26 | . . . . . . 6 . . . . 3 . . 3 . 3 . 3 . . . . 5 3 Classes Destroyed 15 | 2 2 . . . 4 1 1 . . . . . . 1 . 2 . . . . . 1 . 1 Worker 3 | 1 . . . . . . . . . . . . . 1 . . . . . . 1 . . . Builder 2 | . . . . . 1 . . 1 . . . . . . . . . . . . . . . . Tunneler 3 | 2 . . . . . . . . . . . . . . . . . . . . 1 . . . Hauler 6 | . . . . . 1 . . 1 1 . . . . 1 . 2 . . . . . . . . Recycler 4 | . . . . . . . . . . . . . . . . 3 . . . . 1 . . . Operator 2 | . . . . . . . 1 1 . . . . . . . . . . . . . . . . Watcher 2 | . . . . . . . . . . . . . . 1 . 1 . . . . . . . . Swarmer 23 | . 2 . . . . 6 . . . . 3 . . 3 . 1 . 3 . . . . 5 . Grunt 25 | . 4 1 . . 8 3 3 1 . . . . . . . 3 . . . . . . . 2 Brawler 1 | . . . . . . . . . . . . . . . . 1 . . . . . . . . Duelist 1 | . . . . . . . . . . . . . . . . . . . . . . . . 1 Sentry 13 | . . . . . 3 6 1 2 . . . . . . . 1 . . . . . . . . Hunter 2 | . . . . . 2 . . . . . . . . . . . . . . . . . . . Programmer 10 | . . . . . . 6 . . . . . . . . . 1 . 1 . . 2 . . . Behemoth 2 | . . . . . . . . . . . . . . . . . . . . . . 1 . 1 Best Kill Streak 7 | 3 2 1 . . 5 7 3 3 1 . 3 . . 5 . 4 . 4 . . 2 1 5 3 Combat Bots Only 7 | . 2 1 . . 4 7 3 1 . . 3 . . 3 . 2 . 4 . . 1 1 5 3 Max Kills in Single Turn 5 | 1 1 1 . . 2 4 1 1 1 . 2 . . 4 . 2 . 2 . . 1 1 5 1 Gunslinging 1 | . . . . . 1 . . . . . . . . . . . . . . . . . . . Exploded 5 | . . . . . . 4 . . . . 2 . . 3 . 2 . 2 . . . . 5 1 Melee 1 | . . . . . . . . . . . . . . . . 1 . 1 . . 1 . . . Uniques/NPCs Destroyed . | . . . . . . . . . . . . . . . . . . . . . . . . . Combat | -11 -10 -10 -10 -9 -8 -8 -8 -8 -7 -7 -7 -7 -6 -6 -6 -6 -6 -6 -6 -5 -5 -5 -5 -5 -------- Run | Yrd Mat Min Exi Min Mat Gar Mat Sto Fac Low Low Dat Pro Fac Was Fac Low Low Zio Pro Fac Upp Upp War Hostile Shots Fired 556 | . 24 . . . 84 103 51 46 4 14 14 . 12 3 . 32 9 13 . . 67 48 1 31 Missed 200 | . 5 . . . 18 33 17 14 2 7 7 . 7 2 . 15 7 8 . . 27 19 . 12 Hits 356 | . 19 . . . 66 70 34 32 2 7 7 . 5 1 . 17 2 5 . . 40 29 1 19 Projectile 356 | . 19 . . . 66 70 34 32 2 7 7 . 5 1 . 17 2 5 . . 40 29 1 19 AOE 2 | . . . . . . . . . . . . . . . . . . . . . . . . 2 Critical Strikes 18 | . 1 . . . 4 2 3 2 . . . . . . . . . 1 . . 4 1 . . Actively Blocked 1 | . . . . . . . . . . . . . . . . . . . . . 1 . . . Part Disruptions 1 | . . . . . . . . . . 1 . . . . . . . . . . . . . . Damage Taken 5757 | . 234 . . . 1043 940 523 495 32 111 103 . 60 13 . 380 11 82 . . 848 739 19 124 Core 1703 | . 31 . . . 200 120 59 61 . 16 29 . 25 . . 121 4 . . . 360 534 19 124 Absorbed by Shields 39 | . . . . . . . . . . . . . . . . . 5 34 . . . . . . Redirected to Shielding 238 | . . . . . . . . . . 39 31 . 22 . . 11 . 7 . . 128 . . . Ignored by Resistances 99 | . . . . . . 56 . . . . . . . . . . . . . . . 35 . 8 Regen/Repaired (Parts) 123 | . . . . . . . . . . . . . . . . 123 . . . . . . . . Core Remaining (%) 76 | 100 . . . 87 . . . 20 . . . . 90 . . . . . . 85 . . . . Volleys Fired 242 | 2 16 9 . . 58 76 21 19 5 . 2 . . 4 . 17 . 2 . . 1 . 1 9 Largest 2 | 2 2 2 . . 2 2 2 2 1 . 1 . . 1 . 1 . 1 . . 1 . 1 1 Hottest 128 | 60 60 100 . . 60 53 100 128 100 . 36 . . 69 . 69 . 49 . . 69 . 80 80 Shots Fired 426 | 4 30 11 . . 116 145 39 39 5 1 2 . . 4 . 17 . 2 . . 1 . 1 9 Gun 370 | 4 30 4 . . 116 141 36 37 2 . . . . . . . . . . . . . . . Cannon 22 | . . . . . . . . . 1 1 . . . 2 . 17 . . . . 1 . . . Launcher 20 | . . . . . . 4 . . . . 2 . . 2 . . . 2 . . . . 1 9 Special 14 | . . 7 . . . . 3 2 2 . . . . . . . . . . . . . . . Kinetic 342 | 2 16 2 . . 104 141 36 37 2 . . . . . . 2 . . . . . . . . Thermal 44 | 2 14 9 . . 12 . 3 2 2 . . . . . . . . . . . . . . . Explosive 20 | . . . . . . 4 . . . . 2 . . 2 . . . 2 . . . . 1 9 Electromagnetic 20 | . . . . . . . . . 1 1 . . . 2 . 15 . . . . 1 . . . Robot Hit Streak 17 | 2 8 10 . . 9 17 17 9 2 3 . . . 5 . 5 . . . . 2 . . . Robot Miss Streak 3 | . 2 . . . 2 3 3 2 1 . . . . . . 1 . . . . . . . . Penetration Max 1 | . . . . . 1 1 1 1 . . . . . . . . . . . . . . . . Secondary Targets 4 | . 1 . . . 2 . 1 . . . . . . . . . . . . . . . . . Max Gunslinging Chain 1 | . 1 . . . 1 . 1 . . . . . . . . . . . . . . . . . Shots Hit Robots 280 | 2 21 3 . . 80 75 27 28 2 1 . . . 3 . 17 . 2 . . 13 5 . 1 Core Hits 168 | 2 12 3 . . 34 35 11 11 2 . 5 . . 8 . 15 . 4 . . 5 1 5 15 Critical Kills 1 | . . . . . . 1 . . . . . . . . . . . . . . . . . . Critical Parts Destroyed 2 | . . . . . . . 2 . . . . . . . . . . . . . . . . . Critical Strikes 7 | . . . . . . 2 2 1 . . . . . . . . . 1 . . 1 . . . Destroy 5 | . . . . . . 2 2 1 . . . . . . . . . . . . . . . . Sever 1 | . . . . . . . . . . . . . . . . . . 1 . . . . . . Impale 1 | . . . . . . . . . . . . . . . . . . . . . 1 . . . Melee Attacks 107 | . . . . . . . . . . . 1 . 6 1 . 45 . 3 1 4 31 14 . 1 Impact . | . . . . . . . . . . . . . . . . . . . . . . . . . Slashing 57 | . . . . . . . . . . . 1 . 6 1 . 45 . 3 1 . . . . . Piercing 50 | . . . . . . . . . . . . . . . . . . . . 4 31 14 . 1 Sneak Attacks 9 | . . . . . . . . . . . . . . 1 . 5 . . . . 3 . . . Combat Hostiles 1 | . . . . . . . . . . . . . . . . 1 . . . . . . . . Follow-up Attacks . | . . . . . . . . . . . . . . . . . . . . . . . . . Damage Inflicted 9523 | 25 270 39 . . 1417 1892 581 572 46 . 184 . . 450 . 1481 . 383 . . 649 133 311 1090 Guns 4415 | 23 267 34 . . 1410 1535 564 567 15 . . . . . . . . . . . . . . . Cannons 504 | . . . . . . . . . 31 . . . . 96 . 327 . . . . 50 . . . Explosions 3255 | . . . . . . 357 . . . . 184 . . 276 . 727 . 310 . . . . 311 1090 Melee 1310 | . . . . . . . . . . . . . . 78 . 427 . 73 . . 599 133 . . Ramming 39 | 2 3 5 . . 7 . 17 5 . . . . . . . . . . . . . . . . Kinetic 4204 | . 165 12 . . 1346 1535 564 567 15 . . . . . . . . . . . . . . . Thermal 557 | 23 102 22 . . 64 . . . . . . . . . . 346 . . . . . . . . Explosive 2909 | . . . . . . 357 . . . . 184 . . 276 . 381 . 310 . . . . 311 1090 Electromagnetic 504 | . . . . . . . . . 31 . . . . 96 . 327 . . . . 50 . . . Impact . | . . . . . . . . . . . . . . . . . . . . . . . . . Slashing 578 | . . . . . . . . . . . . . . 78 . 427 . 73 . . . . . . Piercing 732 | . . . . . . . . . . . . . . . . . . . . . 599 133 . . Highest Corruption 9 | . . . . . . 4 4 6 1 2 2 2 2 . . . . . . . 9 9 9 9 Average Corruption 4 | . . . . . . 3 4 3 1 1 2 2 2 . . . . . . . 5 9 9 9 Corruption Purged 5 | . . . . . . . . 5 . . . . . . . . . . . . . . . . Corruption Blocked . | . . . . . . . . . . . . . . . . . . . . . . . . . Effects 66 | . . . . . . 23 9 7 . 2 . 1 4 . . . . . . . 7 9 3 1 Message Errors 9 | . . . . . . 3 1 1 . . . . 1 . . . . . . . 1 2 . . Matter Fused 18 | . . . . . . 7 2 2 . . . . . . . . . . . . 3 4 . . Heat Flow Errors 11 | . . . . . . 5 1 1 . 1 . . 1 . . . . . . . 1 . . 1 Energy Discharges 11 | . . . . . . 1 2 . . . . 1 2 . . . . . . . 1 3 1 . Parts Rejected 4 | . . . . . . 1 1 1 . . . . . . . . . . . . 1 . . . Parts Fused 1 | . . . . . . 1 . . . . . . . . . . . . . . . . . . Data Loss (minor) 6 | . . . . . . 2 2 1 . . . . . . . . . . . . . . 1 . Data Loss (major) 2 | . . . . . . 1 . . . . . . . . . . . . . . . . 1 . Misfires 2 | . . . . . . . . 1 . 1 . . . . . . . . . . . . . . Weapon Failures 2 | . . . . . . 2 . . . . . . . . . . . . . . . . . . Overload Shots . | . . . . . . . . . . . . . . . . . . . . . . . . . Overflow Damage 232 | . . . . . . 7 . . . . 4 . . 26 . 92 . . . . 103 . . . Projectiles 41 | . . . . . . . . . . . . . . 26 . . . . . . 15 . . . Explosions 29 | . . . . . . 7 . . . . 4 . . . . 18 . . . . . . . . Melee 162 | . . . . . . . . . . . . . . . . 74 . . . . 88 . . . Knockbacks . | . . . . . . . . . . . . . . . . . . . . . . . . . Impact . | . . . . . . . . . . . . . . . . . . . . . . . . . Kinetic . | . . . . . . . . . . . . . . . . . . . . . . . . . Secondary . | . . . . . . . . . . . . . . . . . . . . . . . . . Self-Inflicted Damage 128 | . . . . . . . . . . . . . . . . 88 . 40 . . . . . . Shots 2 | . . . . . . . . . . . . . . . . 1 . 1 . . . . . . Rammed 9 | . 1 3 . . 2 . 2 1 . . . . . . . . . . . . . . . . Targets Rammed 10 | 1 1 3 . . 2 . 2 1 . . . . . . . . . . . . . . . . Kicked . | . . . . . . . . . . . . . . . . . . . . . . . . . Crushed 1 | 1 . . . . . . . . . . . . . . . . . . . . . . . . Highest Temperature 274 | . 69 62 . . 95 218 130 201 74 129 . . 139 48 . 83 . 5 . . 274 . . 155 Average Temperature 43 | . 37 25 . . 19 97 49 52 34 54 . . 75 28 . 36 . 3 . . 145 . . 28 Received Heat Transfer 1558 | . 135 . . . 450 198 297 234 . 18 . . 24 . . 90 4 . . . . 108 . . Siege Activations . | . . . . . . . . . . . . . . . . . . . . . . . . . Martial Activations . | . . . . . . . . . . . . . . . . . . . . . . . . . Shielding Activations . | . . . . . . . . . . . . . . . . . . . . . . . . . Robots Disrupted . | . . . . . . . . . . . . . . . . . . . . . . . . . Combat Hostiles . | . . . . . . . . . . . . . . . . . . . . . . . . . Robots Corrupted 1 | . . . . . . . . . . . . . . . . 1 . . . . . . . . Combat Hostiles . | . . . . . . . . . . . . . . . . . . . . . . . . . Parts Fried 3 | . . . . . . . . . . . . . . . . 3 . . . . . . . . Impact Corruptions . | . . . . . . . . . . . . . . . . . . . . . . . . . Robots Melted . | . . . . . . . . . . . . . . . . . . . . . . . . . Combat Hostiles . | . . . . . . . . . . . . . . . . . . . . . . . . . Parts Melted . | . . . . . . . . . . . . . . . . . . . . . . . . . Heat Transferred 675 | 50 225 50 . . 150 . . . . . . . . . . 200 . . . . . . . . Parts Sabotaged . | . . . . . . . . . . . . . . . . . . . . . . . . . Parts Stolen . | . . . . . . . . . . . . . . . . . . . . . . . . . Parts Stripped . | . . . . . . . . . . . . . . . . . . . . . . . . . Power Chain Reactions . | . . . . . . . . . . . . . . . . . . . . . . . . . Alert | -11 -10 -10 -10 -9 -8 -8 -8 -8 -7 -7 -7 -7 -6 -6 -6 -6 -6 -6 -6 -5 -5 -5 -5 -5 ------- Run | Yrd Mat Min Exi Min Mat Gar Mat Sto Fac Low Low Dat Pro Fac Was Fac Low Low Zio Pro Fac Upp Upp War Maximum Alert Level 4 | . . . . . . 4 2 . . . . . . 1 . 1 . . . . 2 . . . Low Security (%) 65 | 100 100 100 . 100 100 12 . 100 100 . . . . 26 100 61 . . . . . . . . Level 1 15 | . . . . . . 7 45 . . . . . . 73 . 38 . . . . 51 . . . Level 2 10 | . . . . . . 27 54 . . . . . . . . . . . . . 48 . . . Level 3 8 | . . . . . . 50 . . . . . . . . . . . . . . . . . . Level 4 . | . . . . . . 1 . . . . . . . . . . . . . . . . . . Level 5 . | . . . . . . . . . . . . . . . . . . . . . . . . . High Security . | . . . . . . . . . . . . . . . . . . . . . . . . . Max Security . | . . . . . . . . . . . . . . . . . . . . . . . . . Peak Influence 1114 | 10 106 73 . . 184 1114 542 135 32 . . . . 217 70 253 . . . . 459 . . . Initial 542 | . 3 16 . . . 111 542 135 32 . . . . . 70 21 . . . . 450 . . . Average 194 | . 36 8 . . 29 665 416 73 3 . . . . 155 51 137 . . . . 356 . . . Influence Increases 4607 | 15 218 84 . . 485 1063 184 158 42 . 70 . 45 231 . 839 . 100 . . 643 60 125 245 Destroy 0b10 Robot/C 1740 | . 120 40 . . 320 540 80 60 . . 60 . . 60 . 140 . 80 . . 40 20 100 80 Destroy 0b10 Robot/NC 115 | 15 . . . . 15 . 5 15 5 . . . . 15 . 30 . . . . 15 . . . Destroy Leader 308 | . 30 10 . . 94 20 20 22 2 . 10 . . 14 . 36 . 20 . . 10 10 10 . Allied During Kill 36 | . . 8 . . 12 16 . . . . . . . . . . . . . . . . . . Successful Hack 143 | . 22 5 . . 13 30 . . 20 . . . . . . 46 . . . . 7 . . . Disable Machine 300 | . . 15 . . 15 30 30 . . . . . . 90 . 105 . . . . 15 . . . Anti-Garrison Action 500 | . . . . . . 300 . . . . . . . . . 200 . . . . . . . . Destroy Structure 250 | . 1 6 . . 1 67 4 1 . . . . . 52 . 102 . . . . 16 . . . Advance Influence 450 | . . . . . . . . . . . . . . . . . . . . . 450 . . . Partial Spotted 15 | . . . . . . . . . . . . . . . . 15 . . . . . . . . Lose Combat Pursuer 750 | . 45 . . . 15 60 45 60 15 . . . 45 . . 165 . . . . 90 30 15 165 Influence Decreases 4422 | 10 181 126 . . 313 121 976 407 115 . 20 50 45 30 171 648 173 60 88 . 538 155 50 145 Entered New Map 1387 | . 2 26 . . . 61 572 187 41 . . 50 . . 131 9 83 10 88 . . 40 2 85 Time Decay 2258 | 10 179 100 . . 261 . 214 190 74 . 20 . 45 30 40 489 90 50 . . 278 80 48 60 Search Patrol Dispatched 200 | . . . . . . . . . . . . . . . . . . . . . 200 . . . Lost Part 235 | . . . . . 30 40 40 30 . . . . . . . . . . . . 60 35 . . Lost Ally 42 | . . . . . 22 20 . . . . . . . . . . . . . . . . . . Purge Threat 300 | . . . . . . . 150 . . . . . . . . 150 . . . . . . . . Squads Dispatched 37 | . 1 . . . 4 . 2 4 5 . . . . . . 17 . . . . 4 . . . Investigation 14 | . 1 . . . 1 . . . 3 . . . . . . 8 . . . . 1 . . . Extermination 7 | . . . . . . . . . 1 . . . . . . 4 . . . . 2 . . . Reinforcement 10 | . . . . . 2 . 1 3 1 . . . . . . 2 . . . . 1 . . . Assault . | . . . . . . . . . . . . . . . . . . . . . . . . . Garrison 6 | . . . . . 1 . 1 1 . . . . . . . 3 . . . . . . . . Intercept . | . . . . . . . . . . . . . . . . . . . . . . . . . Searches Triggered 2 | . . . . . . . . . . . . . . . . . . . . . 2 . . . Data Miner Redirects 3 | . . . . . . . . . . . . . . . . 3 . . . . . . . . Construction Impeded . | . . . . . . . . . . . . . . . . . . . . . . . . . Haulers Reinforced 1 | . . . . . . . . . . . . . . . . 1 . . . . . . . . Active Scanning Responses . | . . . . . . . . . . . . . . . . . . . . . . . . . Cargo Convoy Interrupts . | . . . . . . . . . . . . . . . . . . . . . . . . . Stealth | -11 -10 -10 -10 -9 -8 -8 -8 -8 -7 -7 -7 -7 -6 -6 -6 -6 -6 -6 -6 -5 -5 -5 -5 -5 --------- Run | Yrd Mat Min Exi Min Mat Gar Mat Sto Fac Low Low Dat Pro Fac Was Fac Low Low Zio Pro Fac Upp Upp War Distress Signals 8 | . . . . . 1 . 2 4 1 . . . . . . . . . . . . . . . Communications Jammed . | . . . . . . . . . . . . . . . . . . . . . . . . . Distress Signals . | . . . . . . . . . . . . . . . . . . . . . . . . . Times Spotted 200 | . 11 2 . . 24 27 11 15 7 5 3 . 5 4 . 22 1 4 . 3 14 3 1 38 Peak Tracking Total 16 | . 4 2 . . 5 10 4 10 3 5 3 . 3 3 . 7 1 3 . 2 4 2 1 16 Tactical Retreats 26 | . 2 . . . 1 2 2 2 1 . . . 2 . . 6 . . . . 2 1 1 4 ECM-based Alert Blocks 2 | . . . . . . . . . . . . . . . . 2 . . . . . . . . Traps | -11 -10 -10 -10 -9 -8 -8 -8 -8 -7 -7 -7 -7 -6 -6 -6 -6 -6 -6 -6 -5 -5 -5 -5 -5 ------- Run | Yrd Mat Min Exi Min Mat Gar Mat Sto Fac Low Low Dat Pro Fac Was Fac Low Low Zio Pro Fac Upp Upp War Traps Triggered 13 | . 1 . . . 3 2 . 2 . . . . . 1 . 3 . . . . 1 . . . Indirectly . | . . . . . . . . . . . . . . . . . . . . . . . . . Trap Hack Attempts . | . . . . . . . . . . . . . . . . . . . . . . . . . Triggered . | . . . . . . . . . . . . . . . . . . . . . . . . . Disarmed . | . . . . . . . . . . . . . . . . . . . . . . . . . Reprogrammed . | . . . . . . . . . . . . . . . . . . . . . . . . . Reused . | . . . . . . . . . . . . . . . . . . . . . . . . . Traps Extracted . | . . . . . . . . . . . . . . . . . . . . . . . . . Installed . | . . . . . . . . . . . . . . . . . . . . . . . . . Triggered . | . . . . . . . . . . . . . . . . . . . . . . . . . Objects Rigged 3 | . . . . . . . . . . . . . . . . 3 . . . . . . . . Exploded 2 | . . . . . . . . . . . . . . . . 2 . . . . . . . . Machines | -11 -10 -10 -10 -9 -8 -8 -8 -8 -7 -7 -7 -7 -6 -6 -6 -6 -6 -6 -6 -5 -5 -5 -5 -5 ---------- Run | Yrd Mat Min Exi Min Mat Gar Mat Sto Fac Low Low Dat Pro Fac Was Fac Low Low Zio Pro Fac Upp Upp War Machines Disabled 25 | . . 1 . . 1 7 2 . . . . . . 6 . 7 . . . . 1 . . . Max in Single Turn 6 | . . . . . 1 2 1 . . . . . . 6 . 3 . . . . 1 . . . Garrison Access 3 | . . . . . . . . . 1 . . . . . . 1 . . . . 1 . . . Garrison Relay 3 | . . . . . . 3 . . . . . . . . . . . . . . . . . . Phase Generator 1 | . . . . . . 1 . . . . . . . . . . . . . . . . . . Machines Repaired . | . . . . . . . . . . . . . . . . . . . . . . . . . Machines Dismantled . | . . . . . . . . . . . . . . . . . . . . . . . . . Machines Sabotaged . | . . . . . . . . . . . . . . . . . . . . . . . . . Overloaded Fab Kills . | . . . . . . . . . . . . . . . . . . . . . . . . . Hacking | -11 -10 -10 -10 -9 -8 -8 -8 -8 -7 -7 -7 -7 -6 -6 -6 -6 -6 -6 -6 -5 -5 -5 -5 -5 --------- Run | Yrd Mat Min Exi Min Mat Gar Mat Sto Fac Low Low Dat Pro Fac Was Fac Low Low Zio Pro Fac Upp Upp War Machines Accessed 66 | . 3 1 3 . 5 2 1 2 7 2 . 4 . . . 20 . . . . 8 . 1 7 Terminals 33 | . 3 1 . . 4 2 1 2 4 1 . . . . . 11 . . . . 4 . . . Fabricators 9 | . . . . . . . . . 2 . . . . . . 5 . . . . 2 . . . Repair Stations 2 | . . . . . . . . . . . . . . . . 2 . . . . . . . . Recycling Units . | . . . . . . . . . . . . . . . . . . . . . . . . . Scanalyzers 2 | . . . . . . . . . . . . . . . . 1 . . . . 1 . . . Garrison Access 4 | . . . . . 1 . . . 1 . . . . . . 1 . . . . 1 . . . Total Hacks 205 | . 11 2 3 . 14 2 2 4 15 2 . 33 . . . 73 . . . . 28 . 1 15 Successful 141 | . 7 1 3 . 4 2 1 1 9 2 . 33 . . . 43 . . . . 19 . 1 15 Failed 64 | . 4 1 . . 10 . 1 3 6 . . . . . . 30 . . . . 9 . . . Catastrophic 13 | . . . . . . . . . 4 . . . . . . 9 . . . . . . . . Database Lockouts . | . . . . . . . . . . . . . . . . . . . . . . . . . Manual 84 | . 8 . 1 . 8 . . 3 10 . . . . . . 36 . . 5 . 12 . . 1 Terminals 103 | . 11 2 . . 12 2 2 4 9 1 . . . . . 40 . . . . 20 . . . Fabricators 34 | . . . . . . . . . 5 . . . . . . 24 . . . . 5 . . . Repair Stations 4 | . . . . . . . . . . . . . . . . 4 . . . . . . . . Recycling Units . | . . . . . . . . . . . . . . . . . . . . . . . . . Scanalyzers 3 | . . . . . . . . . . . . . . . . 2 . . . . 1 . . . Garrison Access 8 | . . . . . 2 . . . 1 . . . . . . 3 . . . . 2 . . . Terminal Hacks 88 | . 3 1 3 . 3 2 1 1 2 2 . 33 . . . 12 . . . . 9 . 1 15 Record 21 | . . . 2 . . . . . . 1 . 11 . . . . . . . . . . . 7 Part Schematic 15 | . 1 . . . 1 . . . . . . 12 . . . 1 . . . . . . . . Robot Schematic 7 | . . . . . . . . . . . . 7 . . . . . . . . . . . . Robot Analysis 1 | . 1 . . . . . . . . . . . . . . . . . . . . . . . Prototype ID Bank 14 | . . . . . 1 . . . . . . 3 . . . 2 . . . . 2 . . 6 Open Door 5 | . . . . . . . . 1 . 1 . . . . . . . . . . . . 1 2 Branch Access Points 2 | . . . . . . . . . 1 . . . . . . 1 . . . . . . . . Emergency Access Points 1 | . . . . . . 1 . . . . . . . . . . . . . . . . . . Terminal Index 1 | . . . . . . . . . . . . . . . . . . . . . 1 . . . Fabricator Index 2 | . . . . . . . . . . . . . . . . 1 . . . . 1 . . . Alert Level 2 | . . . . . . . . . . . . . . . . 2 . . . . . . . . Unreport Threat 2 | . . . . . . . 1 . . . . . . . . 1 . . . . . . . . Locate Traps 2 | . 1 . . . . . . . 1 . . . . . . . . . . . . . . . Recall Investigation 2 | . . . . . . . . . . . . . . . . 2 . . . . . . . . Recall Extermination 1 | . . . . . . . . . . . . . . . . . . . . . 1 . . . Recall Reinforcements 1 | . . . . . . . . . . . . . . . . 1 . . . . . . . . Hauler Manifests 1 | . . . . . . . . . . . . . . . . . . . . . 1 . . . Registered Components 2 | . . . . . . . . . . . . . . . . 1 . . . . 1 . . . Registered Prototypes 1 | . . . . . . . . . . . . . . . . . . . . . 1 . . . Zone Layout 3 | . . 1 . . 1 . . . . . . . . . . . . . . . 1 . . . Security Stations 1 | . . . . . . 1 . . . . . . . . . . . . . . . . . . Proto ID Catalog 1 | . . . 1 . . . . . . . . . . . . . . . . . . . . . Fabricator Hacks 19 | . . . . . . . . . 3 . . . . . . 13 . . . . 3 . . . Network Status 1 | . . . . . . . . . . . . . . . . 1 . . . . . . . . Load Schematic 12 | . . . . . . . . . 2 . . . . . . 8 . . . . 2 . . . Build 6 | . . . . . . . . . 1 . . . . . . 4 . . . . 1 . . . Repair Station Hacks 4 | . . . . . . . . . . . . . . . . 4 . . . . . . . . Scan Component 2 | . . . . . . . . . . . . . . . . 2 . . . . . . . . Repair 2 | . . . . . . . . . . . . . . . . 2 . . . . . . . . Recycling Unit Hacks . | . . . . . . . . . . . . . . . . . . . . . . . . . Scanalyzer 3 | . . . . . . . . . . . . . . . . 2 . . . . 1 . . . Insert Component 2 | . . . . . . . . . . . . . . . . 1 . . . . 1 . . . Retrieve Study 1 | . . . . . . . . . . . . . . . . 1 . . . . . . . . Garrison Access Hacks 3 | . . . . . 1 . . . 1 . . . . . . . . . . . 1 . . . Unlock Access 1 | . . . . . 1 . . . . . . . . . . . . . . . . . . . Seal Access 2 | . . . . . . . . . 1 . . . . . . . . . . . 1 . . . Unauthorized Hacks 24 | . 4 . . . . . . . 3 . . . . . . 12 . . . . 5 . . . Terminals 13 | . 4 . . . . . . . 1 . . . . . . 5 . . . . 3 . . . Assimilate 1 | . . . . . . . . . 1 . . . . . . . . . . . . . . . Botnet 4 | . 2 . . . . . . . . . . . . . . 1 . . . . 1 . . . Detonate 1 | . . . . . . . . . . . . . . . . 1 . . . . . . . . Operators 3 | . . . . . . . . . . . . . . . . 2 . . . . 1 . . . Skim 4 | . 2 . . . . . . . . . . . . . . 1 . . . . 1 . . . Fabricators 10 | . . . . . . . . . 2 . . . . . . 6 . . . . 2 . . . Prioritize 3 | . . . . . . . . . . . . . . . . 2 . . . . 1 . . . Recompile 7 | . . . . . . . . . 2 . . . . . . 4 . . . . 1 . . . Repair Stations . | . . . . . . . . . . . . . . . . . . . . . . . . . Recycling Units . | . . . . . . . . . . . . . . . . . . . . . . . . . Scanalyzers . | . . . . . . . . . . . . . . . . . . . . . . . . . Garrison Access 1 | . . . . . . . . . . . . . . . . 1 . . . . . . . . Jam 1 | . . . . . . . . . . . . . . . . 1 . . . . . . . . Data Cores Recovered . | . . . . . . . . . . . . . . . . . . . . . . . . . Used . | . . . . . . . . . . . . . . . . . . . . . . . . . Hacking Detections 28 | . 2 . . . 4 1 . 1 4 . . . . . . 14 . . . . 2 . . . Full Trace Events 4 | . . . . . . . . . 1 . . . . . . 3 . . . . . . . . Feedback Events . | . . . . . . . . . . . . . . . . . . . . . . . . . Feedback Blocked . | . . . . . . . . . . . . . . . . . . . . . . . . . Robot Schematics Acquired 9 | . . . . . . . . . . . . 7 . . . . . . 2 . . . . . Robots Built . | . . . . . . . . . . . . . . . . . . . . . . . . . Authchips . | . . . . . . . . . . . . . . . . . . . . . . . . . Time . | . . . . . . . . . . . . . . . . . . . . . . . . . Total Robot Build Rating . | . . . . . . . . . . . . . . . . . . . . . . . . . Part Schematics Acquired 29 | . 1 . . . 1 . . . . . . 12 . . . 1 . . 14 . . . . . Parts Built 7 | . . . . . . . . . 2 . . . . . . 4 . . . . 1 . . . Authchips 6 | . . . . . . . . . 1 . . . . . . 4 . . . . 1 . . . Time 506 | . . . . . . . . . 36 . . . . . . 364 . . . . 106 . . . Total Part Build Rating 35 | . . . . . . . . . 6 . . . . . . 23 . . . . 6 . . . Part Studies Acquired 1 | . . . . . . . . . . . . . . . . 1 . . . . . . . . Parts Repaired 2 | . . . . . . . . . . . . . . . . 2 . . . . . . . . Time 105 | . . . . . . . . . . . . . . . . 105 . . . . . . . . Parts Recycled . | . . . . . . . . . . . . . . . . . . . . . . . . . Recycled Matter . | . . . . . . . . . . . . . . . . . . . . . . . . . Retrieved Matter . | . . . . . . . . . . . . . . . . . . . . . . . . . Retrieved Components . | . . . . . . . . . . . . . . . . . . . . . . . . . Parts Scanalyzed . | . . . . . . . . . . . . . . . . . . . . . . . . . Part Schematics Acquired . | . . . . . . . . . . . . . . . . . . . . . . . . . Parts Damaged . | . . . . . . . . . . . . . . . . . . . . . . . . . Bothacking | -11 -10 -10 -10 -9 -8 -8 -8 -8 -7 -7 -7 -7 -6 -6 -6 -6 -6 -6 -6 -5 -5 -5 -5 -5 ------------ Run | Yrd Mat Min Exi Min Mat Gar Mat Sto Fac Low Low Dat Pro Fac Was Fac Low Low Zio Pro Fac Upp Upp War Used RIF Installer . | . . . . . . . . . . . . . . . . . . . . . . . . . Robots Hacked . | . . . . . . . . . . . . . . . . . . . . . . . . . Non-combat . | . . . . . . . . . . . . . . . . . . . . . . . . . Combat . | . . . . . . . . . . . . . . . . . . . . . . . . . Robot Hacks Applied . | . . . . . . . . . . . . . . . . . . . . . . . . . Relay Couplers Released 13 | . . . . . . 13 . . . . . . . . . . . . . . . . . . Machine Destruction 13 | . . . . . . 13 . . . . . . . . . . . . . . . . . . Fabnet Peak Effective % . | . . . . . . . . . . . . . . . . . . . . . . . . . Robots Rewired . | . . . . . . . . . . . . . . . . . . . . . . . . . Allies Hacked . | . . . . . . . . . . . . . . . . . . . . . . . . . Hacks Repelled 1 | . . . . . . . . . . . . . . . . . . . . . 1 . . . Allies | -11 -10 -10 -10 -9 -8 -8 -8 -8 -7 -7 -7 -7 -6 -6 -6 -6 -6 -6 -6 -5 -5 -5 -5 -5 -------- Run | Yrd Mat Min Exi Min Mat Gar Mat Sto Fac Low Low Dat Pro Fac Was Fac Low Low Zio Pro Fac Upp Upp War Total Allies 5 | . . 3 . . . 1 . . 1 . . . . . . . . . . . . . . . Largest Group 3 | . . 3 3 3 3 1 . . 1 . . . . . . . . . . . . . . . Highest-Rated Group 40 | . . 40 40 40 40 31 . . 26 . . . . . . . . . . . . . . . Highest-Rated Ally 31 | . . 16 16 16 16 31 . . 26 . . . . . . . . . . . . . . . Initial Warlord ECA Mod 10 | . . . . . . . 10 10 9 9 9 9 8 8 8 8 6 6 6 5 5 4 4 4 Warlord Squad Rendezvous 3 | . . . . . . . . . . . . . . . . 2 . . . . 1 . . . Dakka 2 | . . . . . . . . . . . . . . . . 2 . . . . . . . . Pyro 1 | . . . . . . . . . . . . . . . . . . . . . 1 . . . Total Orders . | . . . . . . . . . . . . . . . . . . . . . . . . . Ally Attacks 64 | . . 7 . . 34 23 . . . . . . . . . . . . . . . . . . Total Damage 763 | . . 62 . . 343 358 . . . . . . . . . . . . . . . . . . Kills 11 | . . 1 . . 4 6 . . . . . . . . . . . . . . . . . . Allies Corrupted . | . . . . . . . . . . . . . . . . . . . . . . . . . Allies Melted . | . . . . . . . . . . . . . . . . . . . . . . . . . Intel | -11 -10 -10 -10 -9 -8 -8 -8 -8 -7 -7 -7 -7 -6 -6 -6 -6 -6 -6 -6 -5 -5 -5 -5 -5 ------- Run | Yrd Mat Min Exi Min Mat Gar Mat Sto Fac Low Low Dat Pro Fac Was Fac Low Low Zio Pro Fac Upp Upp War Active Infowar (turns) 4143 | 7 501 982 529 152 1010 . . . . . . . . 60 91 416 . . . . . . . 395 Optics 395 | . . . . . . . . . . . . . . . . . . . . . . . . 395 Seismic 3181 | 7 501 982 529 152 1010 . . . . . . . . . . . . . . . . . . . T.N.C. 567 | . . . . . . . . . . . . . . 60 91 416 . . . . . . . . ECM 33 | . . . . . . . . . . . . . . . . 33 . . . . . . . . Robot Analysis Total 1 | . 1 . . . . . . . . . . . . . . . . . . . . . . . Derelict Logs Recovered 9 | . . 2 . . . . . . . 1 2 . 1 . . . 1 . 1 1 . . . . Drone Launches . | . . . . . . . . . . . . . . . . . . . . . . . . . Drone Recoveries . | . . . . . . . . . . . . . . . . . . . . . . . . . Exploration | -11 -10 -10 -10 -9 -8 -8 -8 -8 -7 -7 -7 -7 -6 -6 -6 -6 -6 -6 -6 -5 -5 -5 -5 -5 ------------- Run | Yrd Mat Min Exi Min Mat Gar Mat Sto Fac Low Low Dat Pro Fac Was Fac Low Low Zio Pro Fac Upp Upp War Turns Passed 13255 | 109 501 982 529 152 1429 1345 450 394 625 271 98 37 225 61 91 1708 183 101 2310 120 602 315 132 485 Spaces Moved 12353 | 54 276 583 294 64 594 622 214 169 1058 671 217 90 520 109 223 1776 387 196 1420 226 959 485 229 917 Core 747 | 3 . . . . . . . . . . . . . . . . . . . . . 350 229 165 Treads 2867 | 51 276 583 294 64 594 622 214 169 . . . . . . . . . . . . . . . . Legs . | . . . . . . . . . . . . . . . . . . . . . . . . . Wheels . | . . . . . . . . . . . . . . . . . . . . . . . . . Hover . | . . . . . . . . . . . . . . . . . . . . . . . . . Flight 8739 | . . . . . . . . . 1058 671 217 90 520 109 223 1776 387 196 1420 226 959 135 . 752 Fastest Speed 29 | 50 160 160 160 240 160 160 160 160 39 39 39 39 39 39 39 39 42 42 34 34 29 34 50 32 Average Speed 84 | 153 160 160 177 240 199 165 160 160 39 39 39 39 39 39 39 41 42 42 159 34 35 46 54 35 Slowest Speed 495 | 160 160 160 240 240 240 240 160 160 42 39 39 39 39 39 39 42 42 42 495 34 101 150 200 50 Overloaded Moves . | . . . . . . . . . . . . . . . . . . . . . . . . . Propulsion Burnouts . | . . . . . . . . . . . . . . . . . . . . . . . . . Robots Hopped 32 | . . . . . . . . . 3 5 . . . . . 13 . . . . 11 . . . Potential Cave-ins . | . . . . . . . . . . . . . . . . . . . . . . . . . Cave-ins Triggered . | . . . . . . . . . . . . . . . . . . . . . . . . . Exploration Rate (%) 52 | 5 60 92 71 18 51 78 30 43 27 79 49 68 68 6 90 41 53 41 86 48 21 47 38 93 Regions Visited 24 Branch Regions 15 Pre-discovered Areas 9 | . . 2 1 . . . . . . 1 . 1 . . . . 1 . 2 . . . . 1 Known Exits Taken 4 | . . . . . 1 . . . 1 . 1 . . . . 1 . . . . . . . . Unknown Exits Taken 17 | 1 1 1 1 1 . . 1 1 . 1 . 1 1 . . . 1 1 1 1 1 1 1 . Scrap Searched 23 | . . 1 . . . . . . . 4 . . 2 . . . 8 3 4 . . 1 . . Spaces Dug 122 | . . 5 . . . . 3 2 . . 1 . 6 . . 37 . 52 . 3 8 5 . . Terrain Destroyed 401 | . . 7 . . . 83 3 3 . . 7 . 6 62 . 120 . 52 . 3 8 5 13 29 Melee 58 | . . . . . . . . . . . 1 . 6 . . 35 . . . 3 8 5 . . Projectile 15 | . . 7 . . . . 3 3 . . . . . . . 2 . . . . . . . . AOE 328 | . . . . . . 83 . . . . 6 . . 62 . 83 . 52 . . . . 13 29 Terrain Rammed . | . . . . . . . . . . . . . . . . . . . . . . . . . Walls Destroyed . | . . . . . . . . . . . . . . . . . . . . . . . . . Machines Disabled . | . . . . . . . . . . . . . . . . . . . . . . . . . Actions | -11 -10 -10 -10 -9 -8 -8 -8 -8 -7 -7 -7 -7 -6 -6 -6 -6 -6 -6 -6 -5 -5 -5 -5 -5 --------- Run | Yrd Mat Min Exi Min Mat Gar Mat Sto Fac Low Low Dat Pro Fac Was Fac Low Low Zio Pro Fac Upp Upp War Total 14527 | 73 304 605 303 63 733 803 273 250 1264 676 224 91 533 120 226 2646 406 207 1480 260 1143 550 234 1060 Wait 1468 | 2 6 6 3 . 39 78 17 45 161 5 1 . 2 1 . 766 19 . . 27 132 44 1 113 Move 12270 | 54 275 582 293 63 594 619 214 168 1051 660 216 89 519 109 222 1750 386 195 1419 225 938 484 228 917 Hop 29 | . . . . . . . . . 3 5 . . . . . 12 . . . . 9 . . . Pick Up 89 | 8 5 3 2 . 9 7 3 2 12 2 . . 1 . 3 14 . . 11 . 2 3 . 2 Fast Attach 83 | 4 . . . . 16 5 4 5 3 1 . 1 1 . . 5 . 2 10 2 11 1 1 11 Attach 44 | 3 . . . . 1 4 4 . 10 . . . . 2 . 6 . . 7 . 5 . 1 1 Detach 12 | . . . . . 2 . . . 2 . . . . . . . . . 1 . 5 1 1 . Swap 51 | . 1 2 1 . 1 3 5 4 2 . 4 . 1 3 . 18 1 2 . . 3 . . . Drop 120 | . . . 4 . 11 7 4 6 15 3 . 1 3 . 1 13 . 3 31 2 6 3 1 6 Fire 242 | 2 16 9 . . 58 76 21 19 5 . 2 . . 4 . 17 . 2 . . 1 . 1 9 Melee 107 | . . . . . . . . . . . 1 . 6 1 . 45 . 3 1 4 31 14 . 1 Ram . | . . . . . . . . . . . . . . . . . . . . . . . . . Kick . | . . . . . . . . . . . . . . . . . . . . . . . . . Crush 8 | . 1 3 . . 2 . 1 1 . . . . . . . . . . . . . . . . Escape Stasis 4 | . . . . . . 4 . . . . . . . . . . . . . . . . . . Rewire . | . . . . . . . . . . . . . . . . . . . . . . . . . Trap . | . . . . . . . . . . . . . . . . . . . . . . . . . Miscellaneous . | . . . . . . . . . . . . . . . . . . . . . . . . . Route ------- -11/Scrapyard -10/Materials (discovered 3 exits: [*Mat x2] / *Min) -10/Mines (discovered 4 exits: [*Mat x2] / *Exi / [*Sub]) -10/Exiles -9/Mines -8/Materials (discovered 2 exits: *Fac / Gar) -8/Garrison (discovered 3 exits: *Mat x3) -8/Materials -8/Storage -7/Factory (discovered 2 exits: *Low x2) -7/Lower Caves -7/Lower Caves (discovered 2 exits: Fac / *Dat) -7/Data Miner -6/Proximity Caves -6/Factory -6/Waste -6/Factory (discovered 3 exits: *Fac / *Low x2) -6/Lower Caves -6/Lower Caves (discovered 2 exits: *Fac / *Zio) -6/Zion (discovered 2 exits: [*Dee] / [*Pro]) -5/Proximity Caves -5/Factory (discovered 4 exits: *Fac x2 / [*Upp] / [*Ext]) -5/Upper Caves -5/Upper Caves (discovered 2 exits: *Fac / *War) -5/Warlord (discovered 1 exit: [*Pro]) History --------- Turn | Location | Event 45 | -11/Scrapyard | Discovered new exit (range 16) 110 | -11/Scrapyard | Entered Materials 309 | -10/Materials | Discovered new exit (range 14) 316 | -10/Materials | Build established: Mutant 451 | -10/Materials | Discovered new exit (range 14) 559 | -10/Materials | Discovered new exit (range 16) 611 | -10/Materials | Entered Mines 628 | -10/Mines | Discovered new exit (range 10) 706 | -10/Mines | Met a Derelict bent on vengeance 872 | -10/Mines | Learned location of Mines (-9) 887 | -10/Mines | Assisted by bots powering up and referring to "LRC-V3" 975 | -10/Mines | Discovered new exit (range 5) 1311 | -10/Mines | Learned location of Storage (-8) 1335 | -10/Mines | Discovered new exit (range 13) 1472 | -10/Mines | A weapon hastily lodged in a ceiling crevice suddenly fell to the ground 1579 | -10/Mines | Deemed a non-threat by the Exiles lab entrance 1580 | -10/Mines | Discovered new exit (range 5) 1593 | -10/Mines | Entered Exiles 1593 | -10/Exiles | Accompanied by 3 allies 1632 | -10/Exiles | Met 8R-AWN 1659 | -10/Exiles | Met EX-HEX 1710 | -10/Exiles | Met EX-BIN 1733 | -10/Exiles | Aligned with FarCom system 1734 | -10/Exiles | Given EX-Vault access code 1773 | -10/Exiles | Opened EX-Vault 1785 | -10/Exiles | Found Flying Fortress v7 1846 | -10/Exiles | Warned to stay clear of 0b10 Research branches 1890 | -10/Exiles | Met EX-DEC 1897 | -10/Exiles | Learned location of Zion (-6) 2100 | -10/Exiles | Discovered new exit (range 10) 2122 | -10/Exiles | Left Exiles lab with Flying Fortress v7 2122 | -10/Exiles | Entered Mines 2122 | -9/Mines | Accompanied by 3 allies 2233 | -9/Mines | Discovered new exit (range 15) 2274 | -9/Mines | Entered Materials 2274 | -8/Materials | Accompanied by 3 allies 2274 | -8/Materials | Evolved 4 slots: Propulsion x2, Utility x2 2881 | -8/Materials | Discovered new exit (range 8) 3586 | -8/Materials | Build established: Scavenger-Mutant 3627 | -8/Materials | Garrison activated, responded to threat 3703 | -8/Materials | Identified exit to Garrison 3703 | -8/Materials | Entered Garrison 3798 | -8/Garrison | Rescued a captive Derelict 3835 | -8/Garrison | Triggered checkpoint 3877 | -8/Garrison | Garrison Relay disabled 3892 | -8/Garrison | Learned Materials security intel 3993 | -8/Garrison | Triggered checkpoint 4005 | -8/Garrison | Destroyed 7 combat bots 4027 | -8/Garrison | Triggered checkpoint 4091 | -8/Garrison | Triggered checkpoint 4145 | -8/Garrison | Garrison Relay disabled 4219 | -8/Garrison | Discovered new exit (range 8) 4399 | -8/Garrison | Triggered checkpoint 4484 | -8/Garrison | Garrison Relay disabled 4549 | -8/Garrison | Discovered new exit (range 15) 4650 | -8/Garrison | Core integrity fell below 50% 4729 | -8/Garrison | Attempted to access garrison exit controls, blocked by remote lockdown 4902 | -8/Garrison | Discovered new exit (range 11) 4936 | -8/Garrison | Phase Generator disabled 5048 | -8/Garrison | Entered Materials 5287 | -8/Materials | Lost 4 parts (2n1u1w) 5413 | -8/Materials | Garrison activated, responded to threat 5477 | -8/Materials | Discovered new exit (range 9) 5498 | -8/Materials | Entered Storage 5858 | -8/Storage | Garrison activated, responded to threat 5886 | -8/Storage | Discovered new exit (range 5) 5892 | -8/Storage | Entered Factory 5892 | -7/Factory | Evolved 2 slots: Propulsion x1, Utility x1 6236 | -7/Factory | Discovered new exit (range 13) 6393 | -7/Factory | Fabricated Imp. Utility Shielding (x2) 6412 | -7/Factory | Identified exit to Lower Caves 6517 | -7/Factory | Entered Lower Caves 6528 | -7/Lower Caves | Learned Factory terminal intel 6529 | -7/Lower Caves | Build established: Hacker-Mutant 6538 | -7/Lower Caves | Met a Warlord Commander 6539 | -7/Lower Caves | Learned location of Warlord (-5) 6540 | -7/Lower Caves | Warlord Commander delivered Encrypted Comm Array 6542 | -7/Lower Caves | Found Encrypted Comm Array 6559 | -7/Lower Caves | Spotted B-75 Beast 6655 | -7/Lower Caves | Encountered a Warlord checkpoint 6782 | -7/Lower Caves | Discovered new exit (range 6) 6788 | -7/Lower Caves | Entered another Lower Caves area 6788 | -7/Lower Caves | Discovered new exit (range 6) 6810 | -7/Lower Caves | Identified exit to Data Miner 6886 | -7/Lower Caves | Entered Data Miner 6887 | -7/Data Miner | Discovered new exit (range 6) 6894 | -7/Data Miner | Met Data Miner 6901 | -7/Data Miner | Learned location of Section 7 (-3) 6901 | -7/Data Miner | Acquired the access code to Warlord's prototype stash 6908 | -7/Data Miner | Received God Mode back door access code from Data Miner 6923 | -7/Data Miner | Entered Proximity Caves 6987 | -6/Proximity Caves | Attracted the attention of an 0b10 checkpoint 7073 | -6/Proximity Caves | Learned Factory terminal intel 7123 | -6/Proximity Caves | Discovered new exit (range 7) 7148 | -6/Proximity Caves | Entered Factory 7148 | -6/Factory | Evolved 2 slots: Utility x2 7149 | -6/Factory | Identified exit to Lower Caves 7150 | -6/Factory | Loaded intel: 26 terminal locations 7209 | -6/Factory | Sucked down chute 7209 | -6/Factory | Entered Waste 7209 | -6/Waste | The area was eerily silent 7273 | -6/Waste | Discovered new exit (range 13) 7300 | -6/Waste | Entered Factory 7301 | -6/Factory | Loaded intel: 26 terminal locations 7556 | -6/Factory | Joined by Warlord Dakka squad 7598 | -6/Factory | Lost 4 allies 7683 | -6/Factory | Repaired Imp. Utility Shielding 8051 | -6/Factory | Repaired Broken Micro-nuke Launcher 8234 | -6/Factory | Garrison activated, responded to threat 8256 | -6/Factory | Allied Derelicts emerged from ambush trap array 8572 | -6/Factory | Discovered new exit (range 11) 8676 | -6/Factory | Fabricated Exp. Utility Shielding (x1) 8733 | -6/Factory | Fabricated Adv. Hacking Suite (x1) 8762 | -6/Factory | Incoming investigation squad redirected 8817 | -6/Factory | Fabricated Adv. Hacking Suite (x1) 8836 | -6/Factory | Incoming investigation squad redirected 8890 | -6/Factory | Incoming investigation squad redirected 8890 | -6/Factory | Joined by Warlord Dakka squad 8988 | -6/Factory | Fabricated Adv. Hacking Suite (x1) 9008 | -6/Factory | Entered Lower Caves 9045 | -6/Lower Caves | Learned location of Extension (-5) 9188 | -6/Lower Caves | Discovered new exit (range 7) 9191 | -6/Lower Caves | Entered another Lower Caves area 9191 | -6/Lower Caves | Discovered new exit (range 12) 9280 | -6/Lower Caves | Discovered new exit (range 14) 9281 | -6/Lower Caves | Encountered a Warlord checkpoint 9292 | -6/Lower Caves | Entered Zion 9350 | -6/Zion | Discovered new exit (range 16) 9413 | -6/Zion | Found Prototype Device 9413 | -6/Zion | Identified Bomb Factory No. 2 9443 | -6/Zion | Found Prototype Hackware 9445 | -6/Zion | Found Prototype Processor 9445 | -6/Zion | Identified Exp. Melee Analysis Suite 9466 | -6/Zion | Found Prototype Processor 9466 | -6/Zion | Identified Exp. Armor Integrity Analyzer 9541 | -6/Zion | Found CR-A16's Pointy Stick 9846 | -6/Zion | Build established: Mutant 9968 | -6/Zion | Received a hallucinogenic algorithm 9968 | -6/Zion | Ran a hallucination algorithm 10002 | -6/Zion | Acquired unknown access codes intercepted by a Zionite 10295 | -6/Zion | Learned Factory non-interactive machine intel 10678 | -6/Zion | Rebuked by Imprinter 10943 | -6/Zion | Opened final containment barrier to the Deep Caves 10980 | -6/Zion | Discovered new exit (range 3) 10980 | -6/Zion | Saw the warning signs outside the Deep Caves entrance 11602 | -6/Zion | Entered Proximity Caves 11621 | -5/Proximity Caves | Spotter reported a threat 11621 | -5/Proximity Caves | Spotter reported a threat 11712 | -5/Proximity Caves | Spotter reported a threat 11720 | -5/Proximity Caves | Discovered new exit (range 7) 11722 | -5/Proximity Caves | Entered Factory 11722 | -5/Factory | Evolved 2 slots: Propulsion x1, Utility x1 11723 | -5/Factory | Loaded intel: 245 non-interactive machine locations 11724 | -5/Factory | Discovered new exit (range 12) 11727 | -5/Factory | Identified Exp. System Shield 11742 | -5/Factory | Discovered new exit (range 10) 11771 | -5/Factory | Identified exit to Factory 11808 | -5/Factory | Build established: Hacker-Mutant 12022 | -5/Factory | Search patrols dispatched 12210 | -5/Factory | Fabricated Adv. Hacking Suite? 12245 | -5/Factory | Joined by Warlord Pyro squad 12258 | -5/Factory | P-70 Sage assimilated allied 2O-D02(i) 12273 | -5/Factory | Discovered new exit (range 12) 12284 | -5/Factory | Discovered new exit (range 15) 12288 | -5/Factory | Found Prototype Launcher 12288 | -5/Factory | Identified Mni. Smartbomb Launcher 12295 | -5/Factory | Lost 3 parts (1p1n1u) 12322 | -5/Factory | Search patrols dispatched 12324 | -5/Factory | Entered Upper Caves 12366 | -5/Upper Caves | Spotted B-75 Beast 12391 | -5/Upper Caves | Core integrity fell below 50% 12400 | -5/Upper Caves | Revealed the true nature of CR-A16's Pointy Stick 12404 | -5/Upper Caves | Destroyed B-75 Beast 12425 | -5/Upper Caves | Lost 5 parts (2n3u) 12514 | -5/Upper Caves | Core integrity fell below 20% 12632 | -5/Upper Caves | Discovered new exit (range 16) 12639 | -5/Upper Caves | Entered another Upper Caves area 12643 | -5/Upper Caves | Discovered exit to Factory (range 14) 12662 | -5/Upper Caves | Attracted the attention of an 0b10 checkpoint 12766 | -5/Upper Caves | Discovered new exit (range 16) 12771 | -5/Upper Caves | Entered Warlord 12789 | -5/Warlord | System corruption cleaned by Quarantine Array 12851 | -5/Warlord | Opened Warlord's prototype stash 12858 | -5/Warlord | Found Prototype Device 12858 | -5/Warlord | Identified Exp. Phase Shifter 12861 | -5/Warlord | Found Prototype Processor 12861 | -5/Warlord | Identified Spectral Analyzer 12866 | -5/Warlord | Found Prototype Device 12866 | -5/Warlord | Identified Exp. Focal Shield 12884 | -5/Warlord | Met Warlord 12909 | -5/Warlord | Warlord's base attacked by MAIN.C 12912 | -5/Warlord | Learned Armory repair station intel 12912 | -5/Warlord | Learned 4 Quarantine zone layouts 12912 | -5/Warlord | Learned 4 Command zone layouts 12912 | -5/Warlord | Learned location of Command (-1) 12912 | -5/Warlord | Learned Research trap positions 12971 | -5/Warlord | Found Prototype Energy Cannon 12971 | -5/Warlord | Identified Vortex Driver 12975 | -5/Warlord | Found Prototype Energy Gun 12975 | -5/Warlord | Identified Vortex Rifle 12979 | -5/Warlord | Found Prototype Launcher 12979 | -5/Warlord | Identified Vortex Catalyst Activator 13055 | -5/Warlord | Spotted B-75 Beast 13064 | -5/Warlord | Spotted B-86 Titan 13146 | -5/Warlord | Warlord forces counterattacked 13147 | -5/Warlord | Spotted B-75 Beast 13147 | -5/Warlord | Spotted B-86 Titan 13180 | -5/Warlord | Destroyed B-86 Titan 13201 | -5/Warlord | Lost 4 allies 13216 | -5/Warlord | Opened side exit 13219 | -5/Warlord | Build established: Hacker-Sprinter 13221 | -5/Warlord | Discovered new exit (range 11) 13221 | -5/Warlord | Spotted Striker 13221 | -5/Warlord | Spotted Executioner 13248 | -5/Warlord | Spotted 5N-O52(g) 13253 | -5/Warlord | P-70 Sage assimilated allied CC-Q1E(g) 13256 | -5/Warlord | Destroyed by D-63 Destroyer with Heavy Rocket Launcher Last Messages --------------- 13180_ B-86 Titan destroyed. 13182_ The unstable cave ceiling collapses. 13183_ Acquired 75 matter. 13195_ The unstable cave ceiling collapses. 13199_ ANNOUNCEMENT: MAIN.C reinforcements approaching through caves, arriving soon. 13209_ ANNOUNCEMENT: Detected 1 Programmer squad, 1 Demolisher squad, 2 Grunt squads, with prototype support. 13211_ Connecting with WAR.Sys... >>Open Door Sealed Heavy Doors opened. 13216_ The tunnel wall slides away. 13221_ EXIT=FOUND 13249_ 5N-O52(g) suffers critical hit (Destroy). 13249_ 5N-O52(g) destroyed. 13251_ Slug penetrates OB-UEM(g). 13253_ P-70 Sage hacks CC-Q1E(g), assimilated. 13254_ The unstable cave ceiling collapses. 13256_ OB-UEM(g) destroyed. 13256_ I5-OCT(M) destroyed. Map ----- +----------------------------------------------------+ | #?????????????????# #??????????????????? | | #?????????????????# #??????????????????? | | #????????????????## ##???????????##????? | | #???????????????## #???????##? ###??? | | #???????????????# #???????" ? #### | | #???????????????# ##??????? < " | | #???????????????# #???????*% = ? | | #???????????????# ##??????%=[=%[=""#? | | #???????????????## #??????[! [%;;#?? | | ####????????????????##" ##????? [=;#??? | | ###???????????????????"" #????? i%;##??? | | #??????????????????? "" #???#" g " #??? | | #???????????????????### ##### g "#????? | | #?????????????????????# gb ###?? | | #?????###?????????????## ### ;## ##? | | #????#""#??????????????## p;; # #? | | ##????#""#???????????????### *g ; #? | | #?????#""#?????????????????# |%= #?? | | #?????#""#??????????????????# =E #?? | | #?????#""#????##########???? %!l ; ##? | | #######""###### # # # ##### ;# #? | | # "" " # # #?? | | " "" #??? | | ; ""%!%= * *= #???? | | /^ ^%/[% =*#%!* ##??? | | % / ! [%%*= Ml M!%@ggg % #??? | | /^ ! ![g l M& M== # #??? | | /^ ^%g*M !% [[ # #??? | | ; "" * = # % #### ##?? | | # "" " ### #?? | | # "" " ### # #### # #?? | | #######""##### # ## ### ## #?# #?? | | #?????#""#???########?###### ### #?? | | #?????#""#????????????????? ### ##?? | | #?????#""#????????????????? ##?# #??? | | ##????#""#???????????????? ???## ##??? | | #????#""#???????????????# ????## #???? | | #?????##????????????????# #?????# #???? | | #???????????????????????# ??????## ##??? | | #???????????????????????# ??????## #??? | | #??????????????????????? ?????## #??? | | ##??????????????????????? ?????# #??? | | #??????????????????????? #??????# #??? | | #########??????????????? #???????# #??? | | + #?????????????? ????????# #??? | | # #?????????????? ????????## ##??? | | # #??????????????#?????????? #???? | | # #????????????????????????? ##???? | | # #?????????????????????????####????? | | + #?????????????????????????????????? | +----------------------------------------------------+ Best States ------------- Heat Dissipation 59 Energy Generation 17 Energy Capacity 700 Matter Stores 300 Matter Capacity 300 Sight Range 24 Terrain Scan Density 10 ECM Strength 2 Additional Mass Support 6 Armor Coverage 300 Resistance: KI 30 Resistance: TH 20 Propulsion Shielding 66 Utility Shielding 90 Evasion (%) 73 Launcher Accuracy 20 Armor Integrity Analysis 50 Recoil Reduction 4 Salvage Targeting 2 Offensive Hacking 42 Defensive Hacking 30 Authchip Count 2 Item Schematics ----------------- Transport Network Coupler | -10/Materials | Hacked Imp. Utility Shielding | -8/Materials | Hacked Combat Drone Bay | -7/Data Miner | Free Lgt. Regenerative Plating | -7/Data Miner | Free Biomechanical Wings | -7/Data Miner | Free Exp. Utility Shielding | -7/Data Miner | Free Ion Burst Cannon | -7/Data Miner | Free Field Propulsion Drive | -7/Data Miner | Free Lyr. Heavy Armor Plating | -7/Data Miner | Free Imp. Heavy Armor Plating | -7/Data Miner | Free Enh. Gauss Cannon | -7/Data Miner | Free Thunder Leg | -7/Data Miner | Free Hvy. Disruptor Cannon | -7/Data Miner | Free Variable Charge Gun | -7/Data Miner | Free Adv. Hacking Suite | -6/Factory | Hacked Arm. Leg | -6/Zion | Archive Antigrav System | -6/Zion | Archive Adv. Cooling System | -6/Zion | Archive Imp. Reaction Control System | -6/Zion | Archive Imp. Thermal Shield | -6/Zion | Archive Adv. Terrain Scanner | -6/Zion | Archive Imp. Armor Integrity Analyzer | -6/Zion | Archive KE Penetrator | -6/Zion | Archive Lrn. Missile Launcher | -6/Zion | Archive Lrn. Tractor Beam | -6/Zion | Archive Imp. Particle Charger | -6/Zion | Archive Lance | -6/Zion | Archive Lgt. Angular Momentum Engine | -6/Zion | Archive Phase Gun | -6/Zion | Archive Robot Schematics ------------------ A-15 Conveyor | -7/Data Miner | Free E-15 Imp | -7/Data Miner | Free Y-54 Guardian | -7/Data Miner | Free B-48 Gladiator | -7/Data Miner | Free G-50 Soldier | -7/Data Miner | Free R-10 Processor | -7/Data Miner | Free X-72 Disruptor | -7/Data Miner | Free S-27 Virus | -6/Zion | Archive Y-72 Warden | -6/Zion | Archive Fabricated ------------ Imp. Utility Shielding | x2 | -7/Factory | Authchip Exp. Utility Shielding | x1 | -6/Factory | Authchip Adv. Hacking Suite | x1 | -6/Factory | Authchip Adv. Hacking Suite | x1 | -6/Factory | Authchip Adv. Hacking Suite | x1 | -6/Factory | Authchip Adv. Hacking Suite | x1 | -5/Factory | Authchip Repaired ---------- Imp. Utility Shielding | 67% | -6/Factory Micro-nuke Launcher | 14% | -6/Factory | Broken Studied --------- Imp. EM Pulse Cannon | -6/Factory | Hacked Alien Tech Used ----------------- None Achievements -------------- I Like You, Cogmind The Robot, The Myth, The Legend Challenges ------------ None Game ------ Seed StrikeMissileTreads Manual? 0 Play Time 02:01:36 Cumulative 845.8 hours Start 2025.12.06 @ 00:00:09 End 2025.12.06 @ 19:49:13 Sessions 3 Manual Loads 0 Difficulty Rogue Special Mode None Game No. 850 Rogue 850 Adventurer 0 Explorer 0 Win Type - Total 40 Types 15/4/11/2/0/0/5/2/1/0 Lore% 96 Gallery% 86 Achievement% 66 Wizard Run 0 Options --------- Layout 0 ASCII 0 Keyboard 0 Movement Numpad Keybinds 0 Fullscreen 1 Font 18/Smallcaps Map View 76x50 Zoom Use 0% Tactical HUD 1 Map Filters NONE Filters NONE Steam 1 RUN: 207bc0c7-33b2-491b-a50a-f0fc91331f4b